{"text_format":"1","workbook":"xlsx","n_sheets":7,"sheets":["表紙","自己採点シート","自己採点シート (全学版)","学習自己点検シート ","単位修得状況確認表（共通教育科目，一般学生）","単位修得状況確認表（専門教育科目）","累積グラフ"],"not_rendered":{"charts":7,"images":3,"macros":1,"external_links":1,"defined_names":45,"comments":0,"pivot_tables":0},"unopened":[],"bounds":{"document_bytes":16777216,"sheet_cells":100000,"rows_first":2000,"rows_last":500,"rows_between":2000,"halvings":0,"cell_chars":16384,"cell_head_chars":4096},"cells_cut":0,"cells_raw":0,"read":"whole","date_system":"1900"}

{"sheet":"表紙","index":0,"n_rows":35,"n_cols":2,"rows_kept":35,"cut":false,"hidden":false,"merged":[[33,2,33,3],[34,3,34,4]]}
[]
[]
[]
[]
[]
[]
[]
[]
[]
[]
[]
[null,"鹿児島大学工学部ポートフォリオ"]
[]
[]
[]
[]
[]
[]
[]
[]
[]
[]
[]
[]
[]
[]
[]
[]
[]
[]
[]
[null,"入学年度：令和4年度"]
[null,"学科：先進工学科　化学生命工学プログラム"]
[null,"氏名："]
[null,"学籍番号："]

{"sheet":"自己採点シート","index":1,"n_rows":22,"n_cols":21,"rows_kept":22,"cut":false,"hidden":false,"merged":[[13,2,13,5],[3,8,3,9],[9,2,9,5],[10,2,10,5],[11,2,11,5],[12,2,12,5],[20,2,20,5],[21,2,21,5],[14,2,14,5],[15,2,15,5],[16,2,16,5],[17,2,17,5],[18,2,18,5],[19,2,19,5]]}
[]
[null,"自己採点シート"]
[]
[null,null,null,null,"氏名:",{"$f":"表紙!$C$34","v":0},null,"学籍番号：",{"$f":"表紙!$D$35","v":0}]
[]
[null,"■学生のみなさんへ"]
[null,null,"今期を振り返って、以下の項目に対して自己採点をしてください。(１０点満点)"]
[]
[]
[null,null,"項目",null,null,null,"1期","2期","3期","4期","5期","6期","7期","8期","9期","10期","11期","12期","13期","14期","卒業時"]
[null,1,"工学に関しての基礎知識\n（物理・化学・数学・情報など）"]
[null,2,"各工学分野での基礎知識\n（専門科目など）"]
[null,3,"人前での発表能力"]
[null,4,"人と話し合ったり議論する能力"]
[null,5,"チームの一員として取り組める（チームワーク）能力"]
[null,6,"英語、その他外国語による表現力"]
[null,7,"読書、講習会への参加、英会話や情報処理学習など大学以外での学習による自己啓発・生涯学習能力"]
[null,8,"社会性や国際感覚が身についているか。"]
[null,9,"倫理観、責任感が身についているか。"]
[null,10]
[null,11]
[null,12]

{"sheet":"自己採点シート (全学版)","index":2,"n_rows":19,"n_cols":13,"rows_kept":19,"cut":false,"hidden":false,"merged":[[17,1,18,1],[17,2,18,5],[10,1,11,1],[10,2,11,5],[12,1,14,1],[12,2,14,5],[15,1,16,1],[15,2,16,5],[3,5,3,6],[3,8,3,9],[6,2,6,12],[8,1,9,1],[8,2,9,5],[8,6,8,7],[8,8,8,9],[8,10,8,11],[8,12,9,12]]}
[]
[null,"自己採点シート（全学基盤ルーブリック）"]
[]
[null,null,"氏名：",null,"氏名:",{"$f":"表紙!$C$34","v":0},{"$f":"表紙!$C$34","v":0},"学籍番号：",{"$f":"表紙!$D$35","v":0}]
[]
[null,"■学生のみなさんへ"]
[null,null,"以下の項目は鹿児島大学の学生として，それぞれの区切りにおいて共通的に備えておくべき能力を表しています．それぞれの項目に対して１０点満点で採点して自己点検をして下さい．"]
[]
[null,null,"大項目",null,null,null,"入学時（もしくは最初に記入するとき）",null,"２年終了時",null,"卒業時（本学の目標）",null,"発展的な目標"]
[null,null,null,null,null,null,"項目","自己評価","項目","自己評価","項目","自己評価"]
[null,1,"自身の成長のために学び続ける力",null,null,null,"自身の成長のために学習しようという意欲がある",null,"自身の状況を省察して課題を発見することができる",null,"自身の状況を省察して課題を発見し、行動を改善することができる",null,"周囲や社会状況に対する的確な判断に基づいて自身の状況を省察して課題を発見し、自身や自身を取り巻く状況を改善するこ とができる"]
[null,null,null,null,null,null,"自身の成長のために適切な学習方法で学ぶ必要があるとの認識がある",null,"目的・目標に応じた方法で学ぶことができる",null,"自身に必要な知識や技術を習得するために適切な方法で学ぶことができる",null,"自ら目標を設定し、それに応じた方法で学び続けることができる"]
[null,2,"多様性を理解し、尊重したコミュニケーションをする力",null,null,null,"相手や状況に応じたコミュニケーションの必要性 を認識している",null,"学習場面において、学生間や教員との間で適切なコミュニケーションができ る",null,"自身が置かれた状況において、相手や状況に応じたコミュニケーションができる",null,"どのような場面においても、多様性を理解、尊重したコミュニケーションが できる"]
[null,null,null,null,null,null,"対話や文章を通じたコミ ュニケーションにおける 倫理の重要性を認識して いる",null,"対話や文章を通じたコミュニケーションに関する倫理について説明することができる",null,"倫理に則った対話や文章を通じたコミュニケーションができる",null,"自身のコミュニケーショ ンが倫理の観点から適切であるかを問い直しつつ、対話や文章を通じたコミ ュニケーションをより適切に行うことができる"]
[null,null,null,null,null,null,"他者との協働の必要性を理解し、それに関わる意欲がある",null,"学習場面において、課題の解決のために学生間で協働できる",null,"自分が置かれた状況を踏まえて、課題解決のために他者と協働できる",null,"他者を尊重して協働し、多様性を活かした課題解決ができる"]
[null,3,"地域/グローバル社会の一員として責任感を持って行動する力",null,null,null,"地域/グローバル社会の一員であるとの自覚がある",null,"社会の一員として求められる倫理・社会的規範に基づく行動の在り方について説明したり、議論したりできる",null,"自分が置かれた状況を踏まえて、社会の一員として倫理・社会的規範に基づいて行動できる",null,"自身の行動が倫理・社会的規範という観点から適切であるかを問い直しつつ、責任ある行動ができる"]
[null,null,null,null,null,null,"地域社会の課題の解決に貢献する意義や必要性を認識している",null,"地域社会の課題の発見や与えられた課題に対する解決策の構想・提案ができる",null,"専門的見地から地域社会の課題を発見し、その発展に貢献し得る自らの専門性を踏まえた方策を構想、 提案できる",null,"地域社会の課題を発見し、その発展に貢献する方策を構想・提案し、解決に向けて自律的に行動できる"]
[null,4,"論理的に考え、多様な情報を活かす力",null,null,null,"情報の多様性やそれらに対する論理的思考の意義を認識している",null,"学習場面において、多様な情報を批判的に検証・精査しながら学ぶことができる",null,"多様な情報を批判的に検証・精査して取捨選択し、 状況に応じて活用できる",null,"多様な情報を批判的に検証・精査し、論理的思考を通じて新たな知の創出に活用できる"]
[null,null,null,null,null,null,"学術的方法の修得に対する意欲がある",null,"学習場面に応じて、適切な学術的方法について説明できる",null,"適切な学術的方法に基づき、新たな知の探究・創出に貢献できる",null,"既存の学術的方法を批判的に問い直し、新たな知を探究・創出できる"]

{"sheet":"学習自己点検シート ","index":3,"n_rows":68,"n_cols":13,"rows_kept":68,"cut":false,"hidden":false,"merged":[[4,11,4,12],[7,2,7,12]]}
[]
[null,null,null,null,null,null,null,null,null,null,null,"年度","期"]
[null,"学習自己点検シート"]
[]
[null,null,null,null,null,null,null,"氏名:",{"$f":"表紙!$C$34","v":0},null,"学籍番号：",{"$f":"表紙!$D$35","v":0}]
[]
[null,"■学生のみなさんへ"]
[null,null,"学生生活全般に関して自己点検をお願いしています。今期を振り返って、以下の質問項目に答えてください。面談時、指導教員（アドバイザー）の先生方から回答に対する具体的なアドバイスを受けてください。"]
[]
[]
[null,"■回答項目"]
[]
[null,1,"今期の目標は達成できましたか。"]
[]
[]
[]
[]
[null,2,"講義への取り組みは積極的でしたか。また、積極的に取り組むことができなかった講義は具体的に何ですか。"]
[]
[]
[]
[]
[null,3,"講義毎に勉強方法がつかめていますか。"]
[]
[]
[]
[]
[null,4,"それぞれの講義の理解度は自分の目標に達していますか。理解度が足りないと感じている講義は何ですか。"]
[]
[]
[]
[]
[null,5,"平日（試験勉強以外）１日当たりの勉強時間（平均）はどのくらいですか。勉強時間が足りないと感じている講義は何ですか。"]
[]
[]
[]
[]
[null,6,"アルバイトと勉強は両立できましたか。"]
[]
[]
[]
[]
[null,7,"サークル活動と勉強は両立できましたか。"]
[]
[]
[]
[]
[null,8,"卒業後の進路についてどのように考えていますか。"]
[]
[]
[]
[]
[null,9,"その他、アドバイスが必要なことはありますか。"]
[]
[]
[]
[]
[null,10]
[]
[]
[]
[]
[null,11]
[]
[]
[]
[]
[null,12]

{"sheet":"単位修得状況確認表（共通教育科目，一般学生）","index":4,"n_rows":37,"n_cols":48,"rows_kept":37,"cut":false,"hidden":false,"merged":[[3,34,3,37],[4,6,4,7],[4,8,4,9],[4,14,4,15],[4,16,4,17],[4,34,4,35],[4,36,4,37],[4,20,4,21],[4,22,4,23],[4,24,4,25],[4,26,4,27],[4,28,4,29],[18,39,19,39],[1,0,1,40],[2,0,5,5],[2,6,2,37],[2,38,5,38],[2,39,5,39],[2,40,5,40],[3,6,3,9],[3,10,3,13],[3,14,3,17],[3,18,3,21],[3,22,3,25],[3,26,3,29],[3,30,3,33],[4,30,4,31],[4,32,4,33],[6,0,14,0],[6,1,11,3],[9,4,10,4],[12,1,13,3],[4,18,4,19],[4,10,4,11],[4,12,4,13],[24,12,24,13],[15,0,20,0],[15,1,17,3],[16,4,17,4],[18,1,19,3],[22,1,22,9],[24,0,24,5],[24,6,24,7],[24,8,24,9],[24,10,24,11],[21,0,21,5],[24,36,24,37],[24,14,24,15],[24,16,24,17],[24,18,24,19],[24,20,24,21],[24,22,24,23],[24,24,24,25],[24,26,24,27],[24,28,24,29],[24,30,24,31],[24,32,24,33],[24,34,24,35],[25,26,25,27],[25,0,25,5],[25,6,25,7],[25,8,25,9],[25,10,25,11],[25,12,25,13],[25,14,25,15],[25,16,25,17],[25,18,25,19],[25,20,25,21],[25,22,25,23],[25,24,25,25],[26,0,26,5],[26,6,26,7],[26,8,26,9],[26,10,26,11],[26,12,26,13],[25,28,25,29],[25,30,25,31],[25,32,25,33],[25,34,25,35],[25,36,25,37],[26,36,26,37],[26,14,26,15],[26,16,26,17],[26,18,26,19],[26,20,26,21],[26,22,26,23],[26,24,26,25],[26,26,26,27],[26,28,26,29],[26,30,26,31],[26,32,26,33],[26,34,26,35]]}
[{"$f":"'単位修得状況確認表（共通教育科目，一般学生）'!G7:V14","v":{"$error":"#VALUE!"}},null,null,null,null,null,null,null,null,null,null,null,null,null,null,null,null,null,null,null,null,null,null,null,null,null,null,null,null,null,null,null,null,null,null,null,null,null,null,null,null,null,null,null,null,null,null,"A"]
["単位修得状況確認表（共通教育科目：一般学生）",null,null,null,null,null,null,null,null,null,null,null,null,null,null,null,null,null,null,null,null,null,null,null,null,null,null,null,null,null,null,null,null,null,null,null,null,null,null,null,null,null,null,null,null,null,null,"B"]
["　",null,null,null,null,null,"取得単位数およびGP",null,null,null,null,null,null,null,null,null,null,null,null,null,null,null,null,null,null,null,null,null,null,null,null,null,null,null,null,null,null,null,"取得単位数","要修得\n単位数","累積GP",null,null,"当該期修得単位の入力要領（共通教育科目）",null,null,null,"C"]
[null,null,null,null,null,null,"　年次",null,null,null,"　年次",null,null,null,"　年次",null,null,null,"　年次",null,null,null,"　年次",null,null,null,"　年次",null,null,null,"　年次",null,null,null,"　年次",null,null,null,null,null,null,null,null,"１．黄色枠に各科目(英語の場合は修得した合計",null,null,null,"D"]
[null,null,null,null,null,null,"１期",null,"２期",null,"３期",null,"４期",null,"５期",null,"６期",null,"７期",null,"８期",null,"９期",null,"10期",null,"11期",null,"12期",null,"13期",null,"14期",null,"15期",null,"16期",null,null,null,null,null,null,"　　単位数)の修得単位数を記入する。",null,null,null,"F"]
[null,null,null,null,null,null,"単位","合計GP","単位","合計GP","単位","合計GP","単位","合計GP","単位","合計GP","単位","合計GP","単位","合計GP","単位","合計GP","単位","合計GP","単位","合計GP","単位","合計GP","単位","合計GP","単位","合計GP","単位","合計GP","単位","合計GP","単位","合計GP",null,null,null,null,null,"２．オレンジ枠に修得した必修科目・選択必修",null,null,null,"P"]
["必修科目","初年次\n教育科目",null,null,"初年次セミナーⅠ",null,null,null,null,null,null,null,null,null,null,null,null,null,null,null,null,null,null,null,null,null,null,null,null,null,null,null,null,null,null,null,null,null,{"$f":"SUM(G7,I7,K7,M7,O7,Q7,S7,U7,W7,Y7,AA7,AC7,AE7,AG7,AI7,AK7)","v":0},2,null,null,null,"　　科目それぞれの合計単位数を記入する。"]
[null,null,null,null,"初年次セミナーⅡ",null,null,null,null,null,null,null,null,null,null,null,null,null,null,null,null,null,null,null,null,null,null,null,null,null,null,null,null,null,null,null,null,null,0,2,null,null,null,"３．灰色枠に受講科目の合計GP（単位数×GP）"]
[null,null,null,null,"大学と地域",null,null,null,null,null,null,null,null,null,null,null,null,null,null,null,null,null,null,null,null,null,null,null,null,null,null,null,null,null,null,null,null,null,0,2,null,null,null,"　　を計算し、その値を入力する。"]
[null,null,null,null,"体育・健康","理論",null,null,null,null,null,null,null,null,null,null,null,null,null,null,null,null,null,null,null,null,null,null,null,null,null,null,null,null,null,null,null,null,0,1,null,null,null,"　（評価とGPの関係：A=4,B=3,C=2,D=1,F=0,Pは"]
[null,null,null,null,null,"実習",null,null,null,null,null,null,null,null,null,null,null,null,null,null,null,null,null,null,null,null,null,null,null,null,null,null,null,null,null,null,null,null,0,1,null,null,null,"　　GPの該当外なので合計GP欄は空欄とする。）"]
[null,null,null,null,"情報活用",null,null,null,null,null,null,null,null,null,null,null,null,null,null,null,null,null,null,null,null,null,null,null,null,null,null,null,null,null,null,null,null,null,0,2,null,null,null,"４．取得単位数を要修得単位数と比較して、"]
[null,"ｸﾞﾛｰﾊﾞﾙ\n教育科目",null,null,"英語",null,null,null,null,null,null,null,null,null,null,null,null,null,null,null,null,null,null,null,null,null,null,null,null,null,null,null,null,null,null,null,null,null,0,6,null,null,null,"　　単位取得状況を把握する。"]
[null,null,null,null,"異文化理解",null,null,null,null,null,null,null,null,null,null,null,null,null,null,null,null,null,null,null,null,null,null,null,null,null,null,null,null,null,null,null,null,null,0,2]
[null,"必修科目　計",null,null,null,null,null,{"$f":"SUM(H7:H14)","v":0},null,{"$f":"SUM(J7:J14)","v":0},null,{"$f":"SUM(L7:L14)","v":0},null,{"$f":"SUM(N7:N14)","v":0},null,{"$f":"SUM(P7:P14)","v":0},null,{"$f":"SUM(R7:R14)","v":0},null,{"$f":"SUM(T7:T14)","v":0},null,{"$f":"SUM(V7:V14)","v":0},null,{"$f":"SUM(X7:X14)","v":0},null,{"$f":"SUM(Z7:Z14)","v":0},null,{"$f":"SUM(AB7:AB14)","v":0},null,{"$f":"SUM(AD7:AD14)","v":0},null,{"$f":"SUM(AF7:AF14)","v":0},null,{"$f":"SUM(AH7:AH14)","v":0},null,{"$f":"SUM(AJ7:AJ14)","v":0},null,{"$f":"SUM(AL7:AL14)","v":0},0,18,{"$f":"SUM(H15,J15,L15,N15,P15,R15,T15,V15,X15,Z15,AB15,AD15,AF15,AH15,AJ15,AL15)","v":0},null,null,"※期をまたがって開講される科目は、成績の出"]
["選択必修科目","教養教育\n科目",null,null,"人文・社会科学分野","選択科目",null,null,null,null,null,null,null,null,null,null,null,null,null,null,null,null,null,null,null,null,null,null,null,null,null,null,null,null,null,null,null,null,0,4,null,null,null,"　された期に記入する。例えば通年の場合、後"]
[null,null,null,null,"自然科学分野","選択科目",null,null,null,null,null,null,null,null,null,null,null,null,null,null,null,null,null,null,null,null,null,null,null,null,null,null,null,null,null,null,null,null,0,2,null,null,null,"　期に記入する。"]
[null,null,null,null,null,"基礎教育入門科目",null,null,null,null,null,null,null,null,null,null,null,null,null,null,null,null,null,null,null,null,null,null,null,null,null,null,null,null,null,null,null,null,0,2,null,null,null,"※本表最下部の表の入力方法について"]
[null,"教養活用\n科目",null,null,"統合Ⅰ（課題発見）",null,null,null,null,null,null,null,null,null,null,null,null,null,null,null,null,null,null,null,null,null,null,null,null,null,null,null,null,null,null,null,null,null,0,4,null,null,null,"　・P評価の単位数は、当該期①の欄に、"]
[null,null,null,null,"統合Ⅱ（課題解決）",null,null,null,null,null,null,null,null,null,null,null,null,null,null,null,null,null,null,null,null,null,null,null,null,null,null,null,null,null,null,null,null,null,0,null,null,null,null,"　・F評価の単位数は、当該期②の欄に、"]
[null,"選択必修科目　計",null,null,null,null,null,{"$f":"SUM(H16:H20)","v":0},null,{"$f":"SUM(J16:J20)","v":0},null,{"$f":"SUM(L16:L20)","v":0},null,{"$f":"SUM(N16:N20)","v":0},null,{"$f":"SUM(P16:P20)","v":0},null,{"$f":"SUM(R16:R20)","v":0},null,{"$f":"SUM(T16:T20)","v":0},null,{"$f":"SUM(V16:V20)","v":0},null,{"$f":"SUM(X16:X20)","v":0},null,{"$f":"SUM(Z16:Z20)","v":0},null,{"$f":"SUM(AB16:AB20)","v":0},null,{"$f":"SUM(AD16:AD20)","v":0},null,{"$f":"SUM(AF16:AF20)","v":0},null,{"$f":"SUM(AH16:AH20)","v":0},null,{"$f":"SUM(AJ16:AJ20)","v":0},null,{"$f":"SUM(AL16:AL20)","v":0},0,12,{"$f":"SUM(H21,J21,L21,N21,P21,R21,T21,V21,X21,Z21,AB21,AD21,AF21,AH21,AJ21,AL21)","v":0},null,null,"　・評価F科目の再履修での修得単位数は当該"]
["全科目合計",null,null,null,null,null,{"$f":"G15+G21","v":0},0,0,0,0,0,0,0,0,0,0,0,0,0,0,0,0,0,0,0,0,0,0,0,0,0,0,0,0,0,0,0,0,30,{"$f":"SUM(H22,J22,L22,N22,P22,R22,T22,V22,X22,Z22,AB22,AD22,AF22,AH22,AJ22,AL22)","v":0},null,null,"　　期③の欄に入力する。なお、②には再履修"]
["※","「期を増やす」欄により学年を４年間増やすことが可。",null,null,null,null,null,null,null,null,null,null,null,null,null,null,null,null,null,null,null,null,null,null,null,null,null,null,null,null,null,null,null,null,null,null,null,null,null,null,null,null,null,"　　の科目は含まない。"]
[null,null,null,null,null,null,null,null,null,null,null,null,null,null,null,null,null,null,null,null,null,null,null,null,null,null,null,null,null,null,null,null,null,null,null,null,null,null,null,null,null,null,null,"※評価Fの科目を再履修して単位を修得した場合"]
["①【共通教育科目】評価Pの単位数",null,null,null,null,null,null,null,null,null,null,null,null,null,null,null,null,null,null,null,null,null,null,null,null,null,null,null,null,null,null,null,null,null,null,null,null,null,{"$f":"SUM(G25:AL25)","v":0},null,null,null,null,"　の入力方法について"]
["②【共通教育科目】不合格（評価F）の単位数",null,null,null,null,null,null,null,null,null,null,null,null,null,null,null,null,null,null,null,null,null,null,null,null,null,null,null,null,null,null,null,null,null,null,null,null,null,{"$f":"SUM(G26:AL26)","v":0},null,null,null,null,"　上記1～3の手順で入力する。"]
["③【共通教育科目】評価F科目の再履修での修得単位数",null,null,null,null,null,null,null,null,null,null,null,null,null,null,null,null,null,null,null,null,null,null,null,null,null,null,null,null,null,null,null,null,null,null,null,null,null,{"$f":"SUM(G27:AL27)","v":0},null,null,null,null,"※既修得単位（D以上）の科目を再履修して単位を"]
[null,null,null,null,null,null,null,null,null,null,null,null,null,null,null,null,null,null,null,null,null,null,null,null,null,null,null,null,null,null,null,null,null,null,null,null,null,null,null,null,null,null,null,"　修得した場合の入力方法について"]
[null,null,null,null,null,null,null,null,null,null,null,null,null,null,null,null,null,null,null,null,null,null,null,null,null,null,null,null,null,null,null,null,null,null,null,null,null,null,null,null,null,null,null,"　今期の分を上記1～3の手順で入力した後、"]
[null,null,null,null,null,null,null,null,null,null,null,null,null,null,null,null,null,null,null,null,null,null,null,null,null,null,null,null,null,null,null,null,null,null,null,null,null,null,null,null,null,null,null,"  過去の評価（黄色枠）と合計GP（灰色枠）"]
[null,null,null,null,null,null,null,null,null,null,null,null,null,null,null,null,null,null,null,null,null,null,null,null,null,null,null,null,null,null,null,null,null,null,null,null,null,null,null,null,null,null,null,"　を削除し、過去のオレンジ枠の合計修得単位数"]
[null,null,null,null,null,null,null,null,null,null,null,null,null,null,null,null,null,null,null,null,null,null,null,null,null,null,null,null,null,null,null,null,null,null,null,null,null,null,null,null,null,null,null,"　から今期再履修で修得した単位数を引いた値を"]
[null,null,null,null,null,null,null,null,null,null,null,null,null,null,null,null,null,null,null,null,null,null,null,null,null,null,null,null,null,null,null,null,null,null,null,null,null,null,null,null,null,null,null,"　過去のオレンジ枠の合計修得単位数に再入力する。"]
[]
[null,null,null,null,null,null,null,null,null,null,null,null,null,null,null,null,null,null,null,null,null,null,null,null,null,null,null,null,null,null,null,null,null,null,null,null,null,null,null,null,null,null,null,"（補足説明）"]
[null,null,null,null,null,null,null,null,null,null,null,null,null,null,null,null,null,null,null,null,null,null,null,null,null,null,null,null,null,null,null,null,null,null,null,null,null,null,null,null,null,null,null,"※留年した場合は「期を増やす」欄で列を増"]
[null,null,null,null,null,null,null,null,null,null,null,null,null,null,null,null,null,null,null,null,null,null,null,null,null,null,null,null,null,null,null,null,null,null,null,null,null,null,null,null,null,null,null,"　やす。"]

{"sheet":"単位修得状況確認表（専門教育科目）","index":5,"n_rows":78,"n_cols":52,"rows_kept":78,"cut":false,"hidden":false,"merged":[[77,33,77,34],[77,35,77,36],[77,37,77,38],[49,40,66,40],[77,17,77,18],[77,19,77,20],[77,21,77,22],[77,23,77,24],[77,25,77,26],[77,27,77,28],[76,33,76,34],[76,35,76,36],[76,37,76,38],[75,29,75,30],[75,31,75,32],[75,33,75,34],[75,35,75,36],[75,37,75,38],[75,17,75,18],[75,19,75,20],[75,21,75,22],[75,23,75,24],[75,25,75,26],[75,27,75,28],[77,0,77,6],[77,7,77,8],[77,9,77,10],[77,11,77,12],[77,13,77,14],[77,15,77,16],[76,27,76,28],[76,29,76,30],[76,31,76,32],[76,15,76,16],[76,17,76,18],[76,19,76,20],[76,21,76,22],[76,23,76,24],[76,25,76,26],[76,0,76,6],[76,7,76,8],[76,9,76,10],[76,11,76,12],[76,13,76,14],[77,29,77,30],[77,31,77,32],[71,0,71,6],[72,0,72,6],[73,1,73,11],[73,39,73,40],[75,0,75,6],[75,7,75,8],[75,9,75,10],[75,11,75,12],[75,13,75,14],[75,15,75,16],[47,1,47,5],[49,0,69,0],[49,1,68,1],[49,47,68,47],[69,1,69,5],[11,51,12,51],[14,0,23,0],[14,1,21,1],[18,51,19,51],[23,1,23,5],[25,0,47,0],[25,1,27,1],[25,40,27,40],[29,1,46,1],[29,40,46,40],[3,27,3,30],[3,31,3,34],[4,37,4,38],[5,0,5,1],[6,0,13,0],[6,1,8,1],[6,40,8,40],[6,47,46,47],[10,1,13,1],[10,40,21,40],[4,25,4,26],[4,27,4,28],[4,29,4,30],[4,31,4,32],[4,33,4,34],[4,35,4,36],[1,0,1,41],[2,0,2,1],[2,2,5,2],[2,3,5,3],[2,4,5,4],[2,7,2,38],[2,39,5,39],[2,40,5,40],[2,41,5,41],[3,7,3,10],[3,35,3,38],[4,7,4,8],[4,9,4,10],[4,11,4,12],[4,13,4,14],[4,15,4,16],[4,17,4,18],[4,19,4,20],[4,21,4,22],[4,23,4,24],[3,11,3,14],[3,15,3,18],[3,19,3,22],[3,23,3,26]]}
[null,null,null,null,null,null,null,null,null,null,null,null,null,null,null,null,null,null,null,null,null,null,null,null,null,null,null,null,null,null,null,null,null,null,null,null,null,null,null,null,null,null,null,null,null,null,null,null,"A"]
["単位修得状況確認表（専門教育科目）",null,null,null,null,null,null,null,null,null,null,null,null,null,null,null,null,null,null,null,null,null,null,null,null,null,null,null,null,null,null,null,null,null,null,null,null,null,null,null,null,null,null,null,"受講科目の単位入力要領（専門教育科目）",null,null,null,"B"]
["区",null,"必修","選択必修","選択","授","単","履修科目の評価およびGP",null,null,null,null,null,null,null,null,null,null,null,null,null,null,null,null,null,null,null,null,null,null,null,null,null,null,null,null,null,null,null,"取得単位数","要修得\n単位数","累積GP",null,null,"STEP１",null,null,null,"C"]
[null," ",null,null,null,"業"," ","　年次",null,null,null,"　年次",null,null,null,"　年次",null,null,null,"　年次",null,null,null,"　年次",null,null,null,"　年次",null,null,null,"　年次",null,null,null,"　年次",null,null,null,null,null,null,null,null,"当該期に受講した科目の単位を区分ごとに以下の手順で",null,null,null,"D"]
[null,null,null,null,null,"科",null,"１期",null,"２期",null,"３期",null,"４期",null,"５期",null,"６期",null,"７期",null,"８期",null,"９期",null,"10期",null,"11期",null,"12期",null,"13期",null,"14期",null,"15期",null,"16期",null,null,null,null,null,null,"入力し、要修得単位数と比較して単位取得状況を把握",null,null,null,"F"]
["分",null,null,null,null,"目","位","評価","合計GP","評価","合計GP","評価","合計GP","評価","合計GP","評価","合計GP","評価","合計GP","評価","合計GP","評価","合計GP","評価","合計GP","評価","合計GP","評価","合計GP","評価","合計GP","評価","合計GP","評価","合計GP","評価","合計GP","評価","合計GP",null,null,null,null,null,"する。",null,null,null,"P"]
["学部共通科目","工学基礎教育強化科目","〇",null,null,"微分積分学Ⅰ",2,null,null,null,null,null,null,null,null,null,null,null,null,null,null,null,null,null,null,null,null,null,null,null,null,null,null,null,null,null,null,null,null,null,6,null,null,null,null,null,null,"必修科目",250421000101,{"$f":"F7","v":"微分積分学Ⅰ"}]
[null,null,"〇",null,null,"線形代数学Ⅰ",2,null,null,null,null,null,null,null,null,null,null,null,null,null,null,null,null,null,null,null,null,null,null,null,null,null,null,null,null,null,null,null,null,null,null,null,null,null,"１．黄色枠に受講科目の評価（A,B,C,D,F,P）を入力する。",null,null,null,250421000110,"線形代数学Ⅰ"]
[null,null,"〇",null,null,"物理学基礎Ⅰ",2,null,null,null,null,null,null,null,null,null,null,null,null,null,null,null,null,null,null,null,null,null,null,null,null,null,null,null,null,null,null,null,null,null,null,null,null,null,"２．オレンジ枠に合計修得単位数を入力する。",null,null,null,250152199102,"物理学基礎Ⅰ","2件以上ヒット","技術者倫理 250227000170\n技術者倫理（機） 250152199102"]
[null,"工学概論系科目","〇",null,null,"工学概論",2,null,null,null,null,null,null,null,null,null,null,null,null,null,null,null,null,null,null,null,null,null,null,null,null,null,null,null,null,null,null,null,null,null,2,null,null,null,"３．灰色枠に受講科目の合計GP（単位数×GP）を計算し、",null,null,null,250421000101,"工学概論"]
[null,"分野融合科目",null,"〇",null,"環境保全と防災",2,null,null,null,null,null,null,null,null,null,null,null,null,null,null,null,null,null,null,null,null,null,null,null,null,null,null,null,null,null,null,null,null,null,4,null,null,null,"    その値を入力する。",null,null,null,250421000110,"環境保全と防災"]
[null,null,null,"〇",null,"科学技術と生産",2,null,null,null,null,null,null,null,null,null,null,null,null,null,null,null,null,null,null,null,null,null,null,null,null,null,null,null,null,null,null,null,null,null,null,null,null,null,"　（評価とGPの関係：A=4,B=3,C=2,D=1,F=0,PはGPの該当",null,null,null,250152199102,"科学技術と生産","2件以上ヒット","技術者倫理 250227000170\n技術者倫理（機） 250152199102"]
[null,null,null,"〇",null,"工学のための地球科学",2,null,null,null,null,null,null,null,null,null,null,null,null,null,null,null,null,null,null,null,null,null,null,null,null,null,null,null,null,null,null,null,null,null,null,null,null,null,"　　外なので合計GP欄は空欄とする。）",null,null,null,250052100101,"工学のための地球科学"]
[null,null,null,"〇",null,"環境生体センシング技術",2,null,null,null,null,null,null,null,null,null,null,null,null,null,null,null,null,null,null,null,null,null,null,null,null,null,null,null,null,null,null,null,null,null,null,null,null,null,"４．修得単位数を要修得単位数と比較して単位取得状況",null,null,null,250152111102,"環境生体センシング技術"]
["学科共通科目","分野融合科目",null,"〇",null,"計算機ハードウェア技術",2,null,null,null,null,null,null,null,null,null,null,null,null,null,null,null,null,null,null,null,null,null,null,null,null,null,null,null,null,null,null,null,null,null,null,null,null,null,"    を把握する。",null,null,null,250421000101,"計算機ハードウェア技術"]
[null,null,null,"〇",null,"エネルギー変換工学",2,null,null,null,null,null,null,null,null,null,null,null,null,null,null,null,null,null,null,null,null,null,null,null,null,null,null,null,null,null,null,null,null,null,null,null,null,null,null,null,null,null,250421000110,"エネルギー変換工学"]
[null,null,null,"〇",null,"工学材料の微小構造と性質",2,null,null,null,null,null,null,null,null,null,null,null,null,null,null,null,null,null,null,null,null,null,null,null,null,null,null,null,null,null,null,null,null,null,null,null,null,null,"※期をまたがって開講される科目は、成績の出された期に",null,null,null,250152199102,"工学材料の微小構造と性質","2件以上ヒット","技術者倫理 250227000170\n技術者倫理（機） 250152199102"]
[null,null,null,"〇",null,"先端計測学",2,null,null,null,null,null,null,null,null,null,null,null,null,null,null,null,null,null,null,null,null,null,null,null,null,null,null,null,null,null,null,null,null,null,null,null,null,null,"  記入する。例えば通年の場合、後期に記入する。",null,null,null,250421000110,"先端計測学"]
[null,null,null,"〇",null,"生命工学",2,null,null,null,null,null,null,null,null,null,null,null,null,null,null,null,null,null,null,null,null,null,null,null,null,null,null,null,null,null,null,null,null,null,null,null,null,null,"※本表最下部の表の入力方法について",null,null,null,250152199102,"生命工学","2件以上ヒット","技術者倫理 250227000170\n技術者倫理（機） 250152199102"]
[null,null,null,"〇",null,"核エネルギーと放射線の\n基礎とその利用",2,null,null,null,null,null,null,null,null,null,null,null,null,null,null,null,null,null,null,null,null,null,null,null,null,null,null,null,null,null,null,null,null,null,null,null,null,null,"　・P評価の単位数は当該期①の欄に、",null,null,null,250052100101,"核エネルギーと放射線の\n基礎とその利用"]
[null,null,null,"〇",null,"化学技術と工学",2,null,null,null,null,null,null,null,null,null,null,null,null,null,null,null,null,null,null,null,null,null,null,null,null,null,null,null,null,null,null,null,null,null,null,null,null,null,"　・F評価の単位数は当該期②の欄に、",null,null,null,250152111102,"化学技術と工学"]
[null,null,null,"〇",null,"工学分野実験・演習",1,null,null,null,null,null,null,null,null,null,null,null,null,null,null,null,null,null,null,null,null,null,null,null,null,null,null,null,null,null,null,null,null,null,null,null,null,null,"　・評価F科目の再履修での修得単位数は当該期③の欄に",null,null,null,250152111102,"工学分野実験・演習"]
[null,"工学基盤\n情報科目","〇",null,null,"数理・データサイエンス基礎",2,null,null,null,null,null,null,null,null,null,null,null,null,null,null,null,null,null,null,null,null,null,null,null,null,null,null,null,null,null,null,null,null,null,2,null,null,null,"　　入力する。なお、②には再履修の科目は含まない。"]
[null,"合計",null,null,null,null,33,null,{"$f":"SUM(I7:I23)","v":0},null,{"$f":"SUM(K7:K23)","v":0},null,{"$f":"SUM(M7:M23)","v":0},null,{"$f":"SUM(O7:O23)","v":0},null,{"$f":"SUM(Q7:Q23)","v":0},null,{"$f":"SUM(S7:S23)","v":0},null,{"$f":"SUM(U7:U23)","v":0},null,{"$f":"SUM(W7:W23)","v":0},null,{"$f":"SUM(Y7:Y23)","v":0},null,{"$f":"SUM(AA7:AA23)","v":0},null,{"$f":"SUM(AC7:AC23)","v":0},null,{"$f":"SUM(AE7:AE23)","v":0},null,{"$f":"SUM(AG7:AG23)","v":0},null,{"$f":"SUM(AI7:AI23)","v":0},null,{"$f":"SUM(AK7:AK23)","v":0},null,{"$f":"SUM(AM7:AM23)","v":0},{"$f":"SUM(H24,J24,L24,N24,P24,R24,T24,V24,X24,Z24,AB24,AD24,AF24,AH24,AJ24,AL24)","v":0},14,{"$f":"SUM(I24,K24,M24,O24,Q24,S24,U24,W24,Y24,AA24,AC24,AE24,AG24,AI24,AK24,AM24)","v":0},null,null,"※評価Fの科目を再履修して単位を修得した場合の入力方",null,null,null,250421000130,{"$f":"B24","v":"合計"}]
[null,null,null,null,null,null,null,null,null,null,null,null,null,null,null,null,null,null,null,null,null,null,null,null,null,null,null,null,null,null,null,null,null,null,null,null,null,null,null,null,null,null,null,null,"  法について"]
["化学生命工学プログラム科目","工学基礎教育強化科目","○",null,null,"微分積分学Ⅱ",2,null,null,null,null,null,null,null,null,null,null,null,null,null,null,null,null,null,null,null,null,null,null,null,null,null,null,null,null,null,null,null,null,null,6,null,null,null,"  上記１～３の手順で入力する。",null,null,null,250421000101,{"$f":"F26","v":"微分積分学Ⅱ"}]
[null,null,"○",null,null,"線形代数学Ⅱ",2,null,null,null,null,null,null,null,null,null,null,null,null,null,null,null,null,null,null,null,null,null,null,null,null,null,null,null,null,null,null,null,null,null,null,null,null,null,"※既修得単位（D以上）の科目を再履修して単位を",null,null,null,250421000110,"線形代数学Ⅱ"]
[null,null,"○",null,null,"物理学基礎Ⅱ",2,null,null,null,null,null,null,null,null,null,null,null,null,null,null,null,null,null,null,null,null,null,null,null,null,null,null,null,null,null,null,null,null,null,null,null,null,null,"　修得した場合の入力方法について",null,null,null,250152199102,"物理学基礎Ⅱ","2件以上ヒット","技術者倫理 250227000170\n技術者倫理（機） 250152199102"]
[null,"就業力育成科目","○",null,null,"工学倫理",2,null,null,null,null,null,null,null,null,null,null,null,null,null,null,null,null,null,null,null,null,null,null,null,null,null,null,null,null,null,null,null,null,null,2,null,null,null,"　今期の分を上記1～3の手順で入力した後、"]
[null,"分野基盤科目 ","○",null,null,"フレッシュマンセミナー",2,null,null,null,null,null,null,null,null,null,null,null,null,null,null,null,null,null,null,null,null,null,null,null,null,null,null,null,null,null,null,null,null,null,42,null,null,null,"  過去の評価（黄色枠）と合計GP（灰色枠）",null,null,null,259752111301,"フレッシュマンセミナー"]
[null,null,"○",null,null,"基礎化学",2,null,null,null,null,null,null,null,null,null,null,null,null,null,null,null,null,null,null,null,null,null,null,null,null,null,null,null,null,null,null,null,null,null,null,null,null,null,"　を削除し、過去のオレンジ枠の合計修得単位数",null,null,null,250152111112,"基礎化学"]
[null,null,"○",null,null,"有機化学基礎",2,null,null,null,null,null,null,null,null,null,null,null,null,null,null,null,null,null,null,null,null,null,null,null,null,null,null,null,null,null,null,null,null,null,null,null,null,null,"　から今期再履修で修得した単位数を引いた値を",null,null,null,259752111402,"有機化学基礎"]
[null,null,"○",null,null,"物理化学基礎",2,null,null,null,null,null,null,null,null,null,null,null,null,null,null,null,null,null,null,null,null,null,null,null,null,null,null,null,null,null,null,null,null,null,null,null,null,null,"　過去のオレンジ枠の合計修得単位数に再入力する。"]
[null,null,"○",null,null,"物理化学Ⅰ",2,null,null,null,null,null,null,null,null,null,null,null,null,null,null,null,null,null,null,null,null,null,null,null,null,null,null,null,null,null,null,null,null,null,null,null,null,null,null,null,null,null,250421000260,"物理化学Ⅰ"]
[null,null,"○",null,null,"化学工学基礎",2]
[null,null,"○",null,null,"有機化学Ⅰ",2,null,null,null,null,null,null,null,null,null,null,null,null,null,null,null,null,null,null,null,null,null,null,null,null,null,null,null,null,null,null,null,null,null,null,null,null,null,"STEP２"]
[null,null,"○",null,null,"有機化学Ⅱ",2,null,null,null,null,null,null,null,null,null,null,null,null,null,null,null,null,null,null,null,null,null,null,null,null,null,null,null,null,null,null,null,null,null,null,null,null,null,"累積GPAの値を学業成績証明書と一致するかチェックする。"]
[null,null,"○",null,null,"物理化学Ⅱ",2,null,null,null,null,null,null,null,null,null,null,null,null,null,null,null,null,null,null,null,null,null,null,null,null,null,null,null,null,null,null,null,null,null,null,null,null,null,"区分ごとの単位修得状況の入力が終了した後に、シート",null,null,null,250152113102,"物理化学Ⅱ"]
[null,null,"○",null,null,"化学生命工学実験",3,null,null,null,null,null,null,null,null,null,null,null,null,null,null,null,null,null,null,null,null,null,null,null,null,null,null,null,null,null,null,null,null,null,null,null,null,null,"右下赤枠の「累積GPA」の値が、学業成績証明書に記載されて"]
[null,null,"○",null,null,"工学英語Ⅰ",2,null,null,null,null,null,null,null,null,null,null,null,null,null,null,null,null,null,null,null,null,null,null,null,null,null,null,null,null,null,null,null,null,null,null,null,null,null,"いる累積GPAの値と一致しているかチェックし、一致"]
[null,null,"○",null,null,"化学情報分析実習",3,null,null,null,null,null,null,null,null,null,null,null,null,null,null,null,null,null,null,null,null,null,null,null,null,null,null,null,null,null,null,null,null,null,null,null,null,null,"していない場合はSTEP１に戻り、入力値に間違いが"]
[null,null,"○",null,null,"化学生命工学セミナーⅠ",2,null,null,null,null,null,null,null,null,null,null,null,null,null,null,null,null,null,null,null,null,null,null,null,null,null,null,null,null,null,null,null,null,null,null,null,null,null,"ないか見直し、正しく入力する。",null,null,null,250421000260,{"$f":"F42","v":"化学生命工学セミナーⅠ"}]
[null,null,"○",null,null,"工学英語Ⅱ",2]
[null,null,"○",null,null,"化学生命工学セミナーⅡ",2,null,null,null,null,null,null,null,null,null,null,null,null,null,null,null,null,null,null,null,null,null,null,null,null,null,null,null,null,null,null,null,null,null,null,null,null,null,"（補足説明）"]
[null,null,"○",null,null,"化学生命工学特別研究Ⅰ",2,null,null,null,null,null,null,null,null,null,null,null,null,null,null,null,null,null,null,null,null,null,null,null,null,null,null,null,null,null,null,null,null,null,null,null,null,null,"※留年した場合は「期を増やす」欄で列を増やす。"]
[null,null,"○",null,null,"化学生命工学特別研究Ⅱ",2,null,null,null,null,null,null,null,null,null,null,null,null,null,null,null,null,null,null,null,null,null,null,null,null,null,null,null,null,null,null,null,null,null,null,null,null,null,"※評価Pの科目については、GPおよびGPAの計算に含ま",null,null,null,250152113102,{"$f":"F46","v":"化学生命工学特別研究Ⅱ"}]
[null,null,"○",null,null,"卒業論文",6,null,null,null,null,null,null,null,null,null,null,null,null,null,null,null,null,null,null,null,null,null,null,null,null,null,null,null,null,null,null,null,null,null,null,null,null,null,"　ない。しかしながら、進級・卒業要件の累積単位数"]
[null,"合計",null,null,null,null,50,null,{"$f":"SUM(I26:I47)","v":0},null,{"$f":"SUM(K26:K47)","v":0},null,{"$f":"SUM(M26:M47)","v":0},null,{"$f":"SUM(O26:O47)","v":0},null,{"$f":"SUM(Q26:Q47)","v":0},null,{"$f":"SUM(S26:S47)","v":0},null,{"$f":"SUM(U26:U47)","v":0},null,{"$f":"SUM(W26:W47)","v":0},null,{"$f":"SUM(Y26:Y47)","v":0},null,{"$f":"SUM(AA26:AA47)","v":0},null,{"$f":"SUM(AC26:AC47)","v":0},null,{"$f":"SUM(AE26:AE47)","v":0},null,{"$f":"SUM(AG26:AG47)","v":0},null,{"$f":"SUM(AI26:AI47)","v":0},null,{"$f":"SUM(AK26:AK47)","v":0},null,{"$f":"SUM(AM26:AM47)","v":0},{"$f":"SUM(H48,J48,L48,N48,P48,R48,T48,V48,X48,Z48,AB48,AD48,AF48,AH48,AJ48,AL48)","v":0},50,{"$f":"SUM(I48,K48,M48,O48,Q48,S48,U48,W48,Y48,AA48,AC48,AE48,AG48,AI48,AK48,AM48)","v":0},null,null,"　には含まれることがあるので、標準履修課程表で確認"]
[null,null,null,null,null,null,null,null,null,null,null,null,null,null,null,null,null,null,null,null,null,null,null,null,null,null,null,null,null,null,null,null,null,null,null,null,null,null,null,null,null,null,null,null,"　すること。（インターンシップ等）"]
["化学生命工学プログラム科目","分野専門科目 ",null,"○",null,"生物化学Ⅰ",2,null,null,null,null,null,null,null,null,null,null,null,null,null,null,null,null,null,null,null,null,null,null,null,null,null,null,null,null,null,null,null,null,null,30,null,null,null,"※随意科目については、GPおよびGPAの計算に含まれない。",null,null,null,250421000140,{"$f":"F50","v":"生物化学Ⅰ"}]
[null,null,null,"○",null,"高分子化学",2,null,null,null,null,null,null,null,null,null,null,null,null,null,null,null,null,null,null,null,null,null,null,null,null,null,null,null,null,null,null,null,null,null,null,null,null,null,"　また、進級・卒業要件にも含まれない。",null,null,null,250421000150,"高分子化学"]
[null,null,null,"○",null,"生体分子化学",2,null,null,null,null,null,null,null,null,null,null,null,null,null,null,null,null,null,null,null,null,null,null,null,null,null,null,null,null,null,null,null,null,null,null,null,null,null,null,null,null,null,250421000160,"生体分子化学"]
[null,null,null,"○",null,"無機化学",2,null,null,null,null,null,null,null,null,null,null,null,null,null,null,null,null,null,null,null,null,null,null,null,null,null,null,null,null,null,null,null,null,null,null,null,null,null,null,null,null,null,250421000170,"無機化学"]
[null,null,null,"○",null,"生物化学Ⅱ",2,null,null,null,null,null,null,null,null,null,null,null,null,null,null,null,null,null,null,null,null,null,null,null,null,null,null,null,null,null,null,null,null,null,null,null,null,null,null,null,null,null,250421000180,"生物化学Ⅱ"]
[null,null,null,"○",null,"化学生命プログラミング",2,null,null,null,null,null,null,null,null,null,null,null,null,null,null,null,null,null,null,null,null,null,null,null,null,null,null,null,null,null,null,null,null,null,null,null,null,null,null,null,null,null,250062100101,"化学生命プログラミング"]
[null,null,null,"○",null,"有機化学Ⅲ",2,null,null,null,null,null,null,null,null,null,null,null,null,null,null,null,null,null,null,null,null,null,null,null,null,null,null,null,null,null,null,null,null,null,null,null,null,null,null,null,null,null,250421000190,"有機化学Ⅲ"]
[null,null,null,"○",null,"分析化学",2,null,null,null,null,null,null,null,null,null,null,null,null,null,null,null,null,null,null,null,null,null,null,null,null,null,null,null,null,null,null,null,null,null,null,null,null,null,null,null,null,null,250421000200,"分析化学"]
[null,null,null,"○",null,"量子化学",2,null,null,null,null,null,null,null,null,null,null,null,null,null,null,null,null,null,null,null,null,null,null,null,null,null,null,null,null,null,null,null,null,null,null,null,null,null,null,null,null,null,250421000210,"量子化学"]
[null,null,null,"○",null,"化学生命工学キャリアデザイン",2,null,null,null,null,null,null,null,null,null,null,null,null,null,null,null,null,null,null,null,null,null,null,null,null,null,null,null,null,null,null,null,null,null,null,null,null,null,null,null,null,null,250421000220,"化学生命工学キャリアデザイン"]
[null,null,null,"○",null,"界面科学",2,null,null,null,null,null,null,null,null,null,null,null,null,null,null,null,null,null,null,null,null,null,null,null,null,null,null,null,null,null,null,null,null,null,null,null,null,null,null,null,null,null,null,"界面科学"]
[null,null,null,"○",null,"生体分子計測学",2]
[null,null,null,"○",null,"分子生物学",2]
[null,null,null,"○",null,"医工学概論",2,null,null,null,null,null,null,null,null,null,null,null,null,null,null,null,null,null,null,null,null,null,null,null,null,null,null,null,null,null,null,null,null,null,null,null,null,null,null,null,null,null,250421000140,{"$f":"F63","v":"医工学概論"}]
[null,null,null,"○",null,"環境化学",2,null,null,null,null,null,null,null,null,null,null,null,null,null,null,null,null,null,null,null,null,null,null,null,null,null,null,null,null,null,null,null,null,null,null,null,null,null,null,null,null,null,250421000150,"環境化学"]
[null,null,null,"○",null,"移動現象基礎",2,null,null,null,null,null,null,null,null,null,null,null,null,null,null,null,null,null,null,null,null,null,null,null,null,null,null,null,null,null,null,null,null,null,null,null,null,null,null,null,null,null,250421000160,"移動現象基礎"]
[null,null,null,"○",null,"微生物学",2,null,null,null,null,null,null,null,null,null,null,null,null,null,null,null,null,null,null,null,null,null,null,null,null,null,null,null,null,null,null,null,null,null,null,null,null,null,null,null,null,null,250421000170,"微生物学"]
[null,null,null,"○",null,"化学生命工学研究基礎",2,null,null,null,null,null,null,null,null,null,null,null,null,null,null,null,null,null,null,null,null,null,null,null,null,null,null,null,null,null,null,null,null,null,null,null,null,null,null,null,null,null,250421000180,"化学生命工学研究基礎"]
[null,null,null,null,"○","インターンシップ",1,null,null,null,null,null,null,null,null,null,null,null,null,null,null,null,null,null,null,null,null,null,null,null,null,null,null,null,null,null,null,null,null,null,null,null,null,null,null,null,null,null,250062100101,"インターンシップ"]
[null,null,null,null,"○","学外実習",1,null,null,null,null,null,null,null,null,null,null,null,null,null,null,null,null,null,null,null,null,null,null,null,null,null,null,null,null,null,null,null,null,null,null,null,null,null,null,null,null,null,250421000190,"学外実習"]
[null,"合計",null,null,null,null,38,null,{"$f":"SUM(I50:I69)","v":0},null,{"$f":"SUM(K50:K69)","v":0},null,{"$f":"SUM(M50:M69)","v":0},null,{"$f":"SUM(O50:O69)","v":0},null,{"$f":"SUM(Q50:Q69)","v":0},null,{"$f":"SUM(S50:S69)","v":0},null,{"$f":"SUM(U50:U69)","v":0},null,{"$f":"SUM(W50:W69)","v":0},null,{"$f":"SUM(Y50:Y69)","v":0},null,{"$f":"SUM(AA50:AA69)","v":0},null,{"$f":"SUM(AC50:AC69)","v":0},null,{"$f":"SUM(AE50:AE69)","v":0},null,{"$f":"SUM(AG50:AG69)","v":0},null,{"$f":"SUM(AI50:AI69)","v":0},null,{"$f":"SUM(AK50:AK69)","v":0},null,{"$f":"SUM(AM50:AM69)","v":0},{"$f":"SUM(H70,J70,L70,N70,P70,R70,T70,V70,X70,Z70,AB70,AD70,AF70,AH70,AJ70,AL70)","v":0},30,{"$f":"SUM(I70,K70,M70,O70,Q70,S70,U70,W70,Y70,AA70,AC70,AE70,AG70,AI70,AK70,AM70)","v":0}]
[]
["専門教育科目合計（単位数とGP）",null,null,null,null,null,null,{"$f":"SUM(H24,H48,H70)","v":0},0,0,0,0,0,0,0,0,0,0,0,0,0,0,0,0,0,0,0,0,0,0,0,0,0,0,0,0,0,0,0,{"$f":"SUM(H72,J72,L72,N72,P72,R72,T72,V72,X72,Z72,AB72,AD72,AF72,AH72,AJ72,AL72)","v":0},94,{"$f":"SUM(I72,K72,M72,O72,Q72,S72,U72,W72,Y72,AA72,AC72,AE72,AG72,AI72,AK72,AM72)","v":0}]
["(共通＋専門)教育科目合計（単位数とGP）",null,null,null,null,null,null,{"$f":"'単位修得状況確認表（共通教育科目，一般学生）'!G22+H72","v":0},{"$f":"'単位修得状況確認表（共通教育科目，一般学生）'!H22+I72","v":0},{"$f":"'単位修得状況確認表（共通教育科目，一般学生）'!I22+J72","v":0},{"$f":"'単位修得状況確認表（共通教育科目，一般学生）'!J22+K72","v":0},{"$f":"'単位修得状況確認表（共通教育科目，一般学生）'!K22+L72","v":0},{"$f":"'単位修得状況確認表（共通教育科目，一般学生）'!L22+M72","v":0},{"$f":"'単位修得状況確認表（共通教育科目，一般学生）'!M22+N72","v":0},{"$f":"'単位修得状況確認表（共通教育科目，一般学生）'!N22+O72","v":0},{"$f":"'単位修得状況確認表（共通教育科目，一般学生）'!O22+P72","v":0},{"$f":"'単位修得状況確認表（共通教育科目，一般学生）'!P22+Q72","v":0},{"$f":"'単位修得状況確認表（共通教育科目，一般学生）'!Q22+R72","v":0},{"$f":"'単位修得状況確認表（共通教育科目，一般学生）'!R22+S72","v":0},{"$f":"'単位修得状況確認表（共通教育科目，一般学生）'!S22+T72","v":0},{"$f":"'単位修得状況確認表（共通教育科目，一般学生）'!T22+U72","v":0},{"$f":"'単位修得状況確認表（共通教育科目，一般学生）'!U22+V72","v":0},{"$f":"'単位修得状況確認表（共通教育科目，一般学生）'!V22+W72","v":0},{"$f":"'単位修得状況確認表（共通教育科目，一般学生）'!W22+X72","v":0},{"$f":"'単位修得状況確認表（共通教育科目，一般学生）'!X22+Y72","v":0},{"$f":"'単位修得状況確認表（共通教育科目，一般学生）'!Y22+Z72","v":0},{"$f":"'単位修得状況確認表（共通教育科目，一般学生）'!Z22+AA72","v":0},{"$f":"'単位修得状況確認表（共通教育科目，一般学生）'!AA22+AB72","v":0},{"$f":"'単位修得状況確認表（共通教育科目，一般学生）'!AB22+AC72","v":0},{"$f":"'単位修得状況確認表（共通教育科目，一般学生）'!AC22+AD72","v":0},{"$f":"'単位修得状況確認表（共通教育科目，一般学生）'!AD22+AE72","v":0},{"$f":"'単位修得状況確認表（共通教育科目，一般学生）'!AE22+AF72","v":0},{"$f":"'単位修得状況確認表（共通教育科目，一般学生）'!AF22+AG72","v":0},{"$f":"'単位修得状況確認表（共通教育科目，一般学生）'!AG22+AH72","v":0},{"$f":"'単位修得状況確認表（共通教育科目，一般学生）'!AH22+AI72","v":0},{"$f":"'単位修得状況確認表（共通教育科目，一般学生）'!AI22+AJ72","v":0},{"$f":"'単位修得状況確認表（共通教育科目，一般学生）'!AJ22+AK72","v":0},{"$f":"'単位修得状況確認表（共通教育科目，一般学生）'!AK22+AL72","v":0},{"$f":"'単位修得状況確認表（共通教育科目，一般学生）'!AL22+AM72","v":0},{"$f":"SUM(H73,J73,L73,N73,P73,R73,T73,V73,X73,Z73,AB73,AD73,AF73,AH73,AJ73,AL73)","v":0},124,{"$f":"SUM(I73,K73,M73,O73,Q73,S73,U73,W73,Y73,AA73,AC73,AE73,AG73,AI73,AK73,AM73)","v":0}]
["※","「期を増やす」欄により学年を４年間増やすことが可。",null,null,null,null,null,null,null,null,null,null,null,null,null,null,null,null,null,null,null,null,null,null,null,null,null,null,null,null,null,null,null,null,null,null,null,null,null,"累積GPA",null,{"$f":"IF(AN73-AN76>0,AP73/(AN73-AN76-'単位修得状況確認表（共通教育科目，一般学生）'!AM25+AN77+'単位修得状況確認表（共通教育科目，一般学生）'!AM26-AN78-'単位修得状況確認表（共通教育科目，一般学生）'!AM27),\"\")","v":""}]
[]
["①【専門教育科目】評価Pの単位数",null,null,null,null,null,null,null,null,null,null,null,null,null,null,null,null,null,null,null,null,null,null,null,null,null,null,null,null,null,null,null,null,null,null,null,null,null,null,{"$f":"SUM(H76:AM76)","v":0}]
["②【専門教育科目】不合格（評価F）の単位数",null,null,null,null,null,null,null,null,null,null,null,null,null,null,null,null,null,null,null,null,null,null,null,null,null,null,null,null,null,null,null,null,null,null,null,null,null,null,{"$f":"SUM(H77:AM77)","v":0}]
["③【専門教育科目】評価F科目の再履修での修得単位数",null,null,null,null,null,null,null,null,null,null,null,null,null,null,null,null,null,null,null,null,null,null,null,null,null,null,null,null,null,null,null,null,null,null,null,null,null,null,{"$f":"SUM(H78:AM78)","v":0}]

{"sheet":"累積グラフ","index":6,"n_rows":217,"n_cols":7,"rows_kept":217,"cut":false,"hidden":false,"merged":[[3,2,3,3],[3,4,3,5],[42,2,42,3],[42,4,42,5],[81,2,81,3]]}
[]
[null,"共通教育科目（必修科目）"]
[]
[null,null,"初年次教育科目",null,"ｸﾞﾛｰﾊﾞﾙ教育科目"]
[null,null,"取得単位数","累積取得単位数","取得単位数","累積取得単位数"]
[null,"1期終了時",{"$f":"SUM('単位修得状況確認表（共通教育科目，一般学生）'!G$7:G$12)","v":0},{"$f":"SUM(C$6:C6)","v":0},{"$f":"SUM('単位修得状況確認表（共通教育科目，一般学生）'!G$13:G$14)","v":0},{"$f":"SUM(E$6:E6)","v":0}]
[null,"2期終了時",{"$f":"SUM('単位修得状況確認表（共通教育科目，一般学生）'!I$7:I$12)","v":0},{"$f":"SUM(C$6:C7)","v":0},{"$f":"SUM('単位修得状況確認表（共通教育科目，一般学生）'!I$13:I$14)","v":0},{"$f":"SUM(E$6:E7)","v":0}]
[null,"3期終了時",{"$f":"SUM('単位修得状況確認表（共通教育科目，一般学生）'!K$7:K$12)","v":0},{"$f":"SUM(C$6:C8)","v":0},{"$f":"SUM('単位修得状況確認表（共通教育科目，一般学生）'!K$13:K$14)","v":0},{"$f":"SUM(E$6:E8)","v":0}]
[null,"4期終了時",{"$f":"SUM('単位修得状況確認表（共通教育科目，一般学生）'!M$7:M$12)","v":0},{"$f":"SUM(C$6:C9)","v":0},{"$f":"SUM('単位修得状況確認表（共通教育科目，一般学生）'!M$13:M$14)","v":0},{"$f":"SUM(E$6:E9)","v":0}]
[null,"5期終了時",{"$f":"SUM('単位修得状況確認表（共通教育科目，一般学生）'!O$7:O$12)","v":0},{"$f":"SUM(C$6:C10)","v":0},{"$f":"SUM('単位修得状況確認表（共通教育科目，一般学生）'!O$13:O$14)","v":0},{"$f":"SUM(E$6:E10)","v":0}]
[null,"6期終了時",{"$f":"SUM('単位修得状況確認表（共通教育科目，一般学生）'!Q$7:Q$12)","v":0},{"$f":"SUM(C$6:C11)","v":0},{"$f":"SUM('単位修得状況確認表（共通教育科目，一般学生）'!Q$13:Q$14)","v":0},{"$f":"SUM(E$6:E11)","v":0}]
[null,"7期終了時",{"$f":"SUM('単位修得状況確認表（共通教育科目，一般学生）'!S$7:S$12)","v":0},{"$f":"SUM(C$6:C12)","v":0},{"$f":"SUM('単位修得状況確認表（共通教育科目，一般学生）'!S$13:S$14)","v":0},{"$f":"SUM(E$6:E12)","v":0}]
[null,"8期終了時",{"$f":"SUM('単位修得状況確認表（共通教育科目，一般学生）'!U$7:U$12)","v":0},{"$f":"SUM(C$6:C13)","v":0},{"$f":"SUM('単位修得状況確認表（共通教育科目，一般学生）'!U$13:U$14)","v":0},{"$f":"SUM(E$6:E13)","v":0}]
[null,"9期終了時",{"$f":"SUM('単位修得状況確認表（共通教育科目，一般学生）'!W$7:W$12)","v":0},{"$f":"IF(SUM($C175:$C$182)=0,\"\",SUM(C$6:C14))","v":""},{"$f":"SUM('単位修得状況確認表（共通教育科目，一般学生）'!W$13:W$14)","v":0},{"$f":"IF(SUM($C175:$C$182)=0,\"\",SUM(E$6:E14))","v":""}]
[null,"10期終了時",{"$f":"SUM('単位修得状況確認表（共通教育科目，一般学生）'!Y$7:Y$12)","v":0},{"$f":"IF(SUM($C176:$C$182)=0,\"\",SUM(C$6:C15))","v":""},{"$f":"SUM('単位修得状況確認表（共通教育科目，一般学生）'!Y$13:Y$14)","v":0},{"$f":"IF(SUM($C176:$C$182)=0,\"\",SUM(E$6:E15))","v":""}]
[null,"11期終了時",{"$f":"SUM('単位修得状況確認表（共通教育科目，一般学生）'!AA$7:AA$12)","v":0},{"$f":"IF(SUM($C177:$C$182)=0,\"\",SUM(C$6:C16))","v":""},{"$f":"SUM('単位修得状況確認表（共通教育科目，一般学生）'!AA$13:AA$14)","v":0},{"$f":"IF(SUM($C177:$C$182)=0,\"\",SUM(E$6:E16))","v":""}]
[null,"12期終了時",{"$f":"SUM('単位修得状況確認表（共通教育科目，一般学生）'!AC$7:AC$12)","v":0},{"$f":"IF(SUM($C178:$C$182)=0,\"\",SUM(C$6:C17))","v":""},{"$f":"SUM('単位修得状況確認表（共通教育科目，一般学生）'!AC$13:AC$14)","v":0},{"$f":"IF(SUM($C178:$C$182)=0,\"\",SUM(E$6:E17))","v":""}]
[null,"13期終了時",{"$f":"SUM('単位修得状況確認表（共通教育科目，一般学生）'!AE$7:AE$12)","v":0},{"$f":"IF(SUM($C179:$C$182)=0,\"\",SUM(C$6:C18))","v":""},{"$f":"SUM('単位修得状況確認表（共通教育科目，一般学生）'!AE$13:AE$14)","v":0},{"$f":"IF(SUM($C179:$C$182)=0,\"\",SUM(E$6:E18))","v":""}]
[null,"14期終了時",{"$f":"SUM('単位修得状況確認表（共通教育科目，一般学生）'!AG$7:AG$12)","v":0},{"$f":"IF(SUM($C180:$C$182)=0,\"\",SUM(C$6:C19))","v":""},{"$f":"SUM('単位修得状況確認表（共通教育科目，一般学生）'!AG$13:AG$14)","v":0},{"$f":"IF(SUM($C180:$C$182)=0,\"\",SUM(E$6:E19))","v":""}]
[null,"15期終了時",{"$f":"SUM('単位修得状況確認表（共通教育科目，一般学生）'!AI$7:AI$12)","v":0},{"$f":"IF(SUM($C181:$C$182)=0,\"\",SUM(C$6:C20))","v":""},{"$f":"SUM('単位修得状況確認表（共通教育科目，一般学生）'!AI$13:AI$14)","v":0},{"$f":"IF(SUM($C181:$C$182)=0,\"\",SUM(E$6:E20))","v":""}]
[null,"16期終了時",{"$f":"SUM('単位修得状況確認表（共通教育科目，一般学生）'!AK$7:AK$12)","v":0},{"$f":"IF(SUM($C182:$C$182)=0,\"\",SUM(C$6:C21))","v":""},{"$f":"SUM('単位修得状況確認表（共通教育科目，一般学生）'!AK$13:AK$14)","v":0},{"$f":"IF(SUM($C182:$C$182)=0,\"\",SUM(E$6:E21))","v":""}]
[]
[]
[]
[]
[]
[]
[]
[]
[]
[]
[]
[]
[]
[]
[]
[]
[]
[]
[]
[null,"共通教育科目（選択必修科目）"]
[]
[null,null,"教養教育科目",null,"教養活用科目"]
[null,null,"取得単位数","累積取得単位数","取得単位数","累積取得単位数"]
[null,"1期終了時",{"$f":"SUM('単位修得状況確認表（共通教育科目，一般学生）'!G$16:G$18)","v":0},{"$f":"SUM(C$45:C45)","v":0},{"$f":"SUM('単位修得状況確認表（共通教育科目，一般学生）'!G$19:G$20)","v":0},{"$f":"SUM(E$45:E45)","v":0}]
[null,"2期終了時",{"$f":"SUM('単位修得状況確認表（共通教育科目，一般学生）'!I$16:I$18)","v":0},{"$f":"SUM(C$45:C46)","v":0},{"$f":"SUM('単位修得状況確認表（共通教育科目，一般学生）'!I$19:I$20)","v":0},{"$f":"SUM(E$45:E46)","v":0}]
[null,"3期終了時",{"$f":"SUM('単位修得状況確認表（共通教育科目，一般学生）'!K$16:K$18)","v":0},{"$f":"SUM(C$45:C47)","v":0},{"$f":"SUM('単位修得状況確認表（共通教育科目，一般学生）'!K$19:K$20)","v":0},{"$f":"SUM(E$45:E47)","v":0}]
[null,"4期終了時",{"$f":"SUM('単位修得状況確認表（共通教育科目，一般学生）'!M$16:M$18)","v":0},{"$f":"SUM(C$45:C48)","v":0},{"$f":"SUM('単位修得状況確認表（共通教育科目，一般学生）'!M$19:M$20)","v":0},{"$f":"SUM(E$45:E48)","v":0}]
[null,"5期終了時",{"$f":"SUM('単位修得状況確認表（共通教育科目，一般学生）'!O$16:O$18)","v":0},{"$f":"SUM(C$45:C49)","v":0},{"$f":"SUM('単位修得状況確認表（共通教育科目，一般学生）'!O$19:O$20)","v":0},{"$f":"SUM(E$45:E49)","v":0}]
[null,"6期終了時",{"$f":"SUM('単位修得状況確認表（共通教育科目，一般学生）'!Q$16:Q$18)","v":0},{"$f":"SUM(C$45:C50)","v":0},{"$f":"SUM('単位修得状況確認表（共通教育科目，一般学生）'!Q$19:Q$20)","v":0},{"$f":"SUM(E$45:E50)","v":0}]
[null,"7期終了時",{"$f":"SUM('単位修得状況確認表（共通教育科目，一般学生）'!S$16:S$18)","v":0},{"$f":"SUM(C$45:C51)","v":0},{"$f":"SUM('単位修得状況確認表（共通教育科目，一般学生）'!S$19:S$20)","v":0},{"$f":"SUM(E$45:E51)","v":0}]
[null,"8期終了時",{"$f":"SUM('単位修得状況確認表（共通教育科目，一般学生）'!U$16:U$18)","v":0},{"$f":"SUM(C$45:C52)","v":0},{"$f":"SUM('単位修得状況確認表（共通教育科目，一般学生）'!U$19:U$20)","v":0},{"$f":"SUM(E$45:E52)","v":0}]
[null,"9期終了時",{"$f":"SUM('単位修得状況確認表（共通教育科目，一般学生）'!W$16:W$18)","v":0},{"$f":"IF(SUM($C175:$C$182)=0,\"\",SUM(C$45:C53))","v":""},{"$f":"SUM('単位修得状況確認表（共通教育科目，一般学生）'!W$19:W$20)","v":0},{"$f":"IF(SUM($C175:$C$182)=0,\"\",SUM(E$45:E53))","v":""}]
[null,"10期終了時",{"$f":"SUM('単位修得状況確認表（共通教育科目，一般学生）'!Y$16:Y$18)","v":0},{"$f":"IF(SUM($C176:$C$182)=0,\"\",SUM(C$45:C54))","v":""},{"$f":"SUM('単位修得状況確認表（共通教育科目，一般学生）'!Y$19:Y$20)","v":0},{"$f":"IF(SUM($C176:$C$182)=0,\"\",SUM(E$45:E54))","v":""}]
[null,"11期終了時",{"$f":"SUM('単位修得状況確認表（共通教育科目，一般学生）'!AA$16:AA$18)","v":0},{"$f":"IF(SUM($C177:$C$182)=0,\"\",SUM(C$45:C55))","v":""},{"$f":"SUM('単位修得状況確認表（共通教育科目，一般学生）'!AA$19:AA$20)","v":0},{"$f":"IF(SUM($C177:$C$182)=0,\"\",SUM(E$45:E55))","v":""}]
[null,"12期終了時",{"$f":"SUM('単位修得状況確認表（共通教育科目，一般学生）'!AC$16:AC$18)","v":0},{"$f":"IF(SUM($C178:$C$182)=0,\"\",SUM(C$45:C56))","v":""},{"$f":"SUM('単位修得状況確認表（共通教育科目，一般学生）'!AC$19:AC$20)","v":0},{"$f":"IF(SUM($C178:$C$182)=0,\"\",SUM(E$45:E56))","v":""}]
[null,"13期終了時",{"$f":"SUM('単位修得状況確認表（共通教育科目，一般学生）'!AE$16:AE$18)","v":0},{"$f":"IF(SUM($C179:$C$182)=0,\"\",SUM(C$45:C57))","v":""},{"$f":"SUM('単位修得状況確認表（共通教育科目，一般学生）'!AE$19:AE$20)","v":0},{"$f":"IF(SUM($C179:$C$182)=0,\"\",SUM(E$45:E57))","v":""}]
[null,"14期終了時",{"$f":"SUM('単位修得状況確認表（共通教育科目，一般学生）'!AG$16:AG$18)","v":0},{"$f":"IF(SUM($C180:$C$182)=0,\"\",SUM(C$45:C58))","v":""},{"$f":"SUM('単位修得状況確認表（共通教育科目，一般学生）'!AG$19:AG$20)","v":0},{"$f":"IF(SUM($C180:$C$182)=0,\"\",SUM(E$45:E58))","v":""}]
[null,"15期終了時",{"$f":"SUM('単位修得状況確認表（共通教育科目，一般学生）'!AI$16:AI$18)","v":0},{"$f":"IF(SUM($C181:$C$182)=0,\"\",SUM(C$45:C59))","v":""},{"$f":"SUM('単位修得状況確認表（共通教育科目，一般学生）'!AI$19:AI$20)","v":0},{"$f":"IF(SUM($C181:$C$182)=0,\"\",SUM(E$45:E59))","v":""}]
[null,"16期終了時",{"$f":"SUM('単位修得状況確認表（共通教育科目，一般学生）'!AK$16:AK$18)","v":0},{"$f":"IF(SUM($C182:$C$182)=0,\"\",SUM(C$45:C60))","v":""},{"$f":"SUM('単位修得状況確認表（共通教育科目，一般学生）'!AK$19:AK$20)","v":0},{"$f":"IF(SUM($C182:$C$182)=0,\"\",SUM(E$45:E60))","v":""}]
[]
[]
[]
[]
[]
[]
[]
[]
[]
[]
[]
[]
[]
[]
[]
[]
[]
[]
[]
[null,"専門教育科目（共通科目）"]
[]
[null,null,"必修科目"]
[null,null,"取得単位数","累積取得単位数"]
[null,"1期終了時",{"$f":"'単位修得状況確認表（専門教育科目）'!H$24","v":0},{"$f":"SUM(C$84:C84)","v":0}]
[null,"2期終了時",{"$f":"'単位修得状況確認表（専門教育科目）'!J$24","v":0},{"$f":"SUM(C$84:C85)","v":0}]
[null,"3期終了時",{"$f":"'単位修得状況確認表（専門教育科目）'!L$24","v":0},{"$f":"SUM(C$84:C86)","v":0}]
[null,"4期終了時",{"$f":"'単位修得状況確認表（専門教育科目）'!N$24","v":0},{"$f":"SUM(C$84:C87)","v":0}]
[null,"5期終了時",{"$f":"'単位修得状況確認表（専門教育科目）'!P$24","v":0},{"$f":"SUM(C$84:C88)","v":0}]
[null,"6期終了時",{"$f":"'単位修得状況確認表（専門教育科目）'!R$24","v":0},{"$f":"SUM(C$84:C89)","v":0}]
[null,"7期終了時",{"$f":"'単位修得状況確認表（専門教育科目）'!T$24","v":0},{"$f":"SUM(C$84:C90)","v":0}]
[null,"8期終了時",{"$f":"'単位修得状況確認表（専門教育科目）'!V$24","v":0},{"$f":"SUM(C$84:C91)","v":0}]
[null,"9期終了時",{"$f":"'単位修得状況確認表（専門教育科目）'!X$24","v":0},{"$f":"IF(SUM($C175:$C$182)=0,\"\",SUM(C$84:C92))","v":""}]
[null,"10期終了時",{"$f":"'単位修得状況確認表（専門教育科目）'!Z$24","v":0},{"$f":"IF(SUM($C176:$C$182)=0,\"\",SUM(C$84:C93))","v":""}]
[null,"11期終了時",{"$f":"'単位修得状況確認表（専門教育科目）'!AB$24","v":0},{"$f":"IF(SUM($C177:$C$182)=0,\"\",SUM(C$84:C94))","v":""}]
[null,"12期終了時",{"$f":"'単位修得状況確認表（専門教育科目）'!AD$24","v":0},{"$f":"IF(SUM($C178:$C$182)=0,\"\",SUM(C$84:C95))","v":""}]
[null,"13期終了時",{"$f":"'単位修得状況確認表（専門教育科目）'!AF$24","v":0},{"$f":"IF(SUM($C179:$C$182)=0,\"\",SUM(C$84:C96))","v":""}]
[null,"14期終了時",{"$f":"'単位修得状況確認表（専門教育科目）'!AH$24","v":0},{"$f":"IF(SUM($C180:$C$182)=0,\"\",SUM(C$84:C97))","v":""}]
[null,"15期終了時",{"$f":"'単位修得状況確認表（専門教育科目）'!AJ$24","v":0},{"$f":"IF(SUM($C181:$C$182)=0,\"\",SUM(C$84:C98))","v":""}]
[null,"16期終了時",{"$f":"'単位修得状況確認表（専門教育科目）'!AL$24","v":0},{"$f":"IF(SUM($C182:$C$182)=0,\"\",SUM(C$84:C99))","v":""}]
[]
[]
[]
[]
[]
[]
[]
[null,"専門教育科目（プログラム科目:必修）"]
[]
[null,null,"取得単位数","累積取得単位数"]
[null,"1期終了時",{"$f":"'単位修得状況確認表（専門教育科目）'!H$48","v":0},{"$f":"SUM(C$110:C110)","v":0}]
[null,"2期終了時",{"$f":"'単位修得状況確認表（専門教育科目）'!J$48","v":0},{"$f":"SUM(C$110:C111)","v":0}]
[null,"3期終了時",{"$f":"'単位修得状況確認表（専門教育科目）'!L$48","v":0},{"$f":"SUM(C$110:C112)","v":0}]
[null,"4期終了時",{"$f":"'単位修得状況確認表（専門教育科目）'!N$48","v":0},{"$f":"SUM(C$110:C113)","v":0}]
[null,"5期終了時",{"$f":"'単位修得状況確認表（専門教育科目）'!P$48","v":0},{"$f":"SUM(C$110:C114)","v":0}]
[null,"6期終了時",{"$f":"'単位修得状況確認表（専門教育科目）'!R$48","v":0},{"$f":"SUM(C$110:C115)","v":0}]
[null,"7期終了時",{"$f":"'単位修得状況確認表（専門教育科目）'!T$48","v":0},{"$f":"SUM(C$110:C116)","v":0}]
[null,"8期終了時",{"$f":"'単位修得状況確認表（専門教育科目）'!V$48","v":0},{"$f":"SUM(C$110:C117)","v":0}]
[null,"9期終了時",{"$f":"'単位修得状況確認表（専門教育科目）'!X$48","v":0},{"$f":"IF(SUM($C175:$C$182)=0,\"\",SUM(C$110:C118))","v":""}]
[null,"10期終了時",{"$f":"'単位修得状況確認表（専門教育科目）'!Z$48","v":0},{"$f":"IF(SUM($C176:$C$182)=0,\"\",SUM(C$110:C119))","v":""}]
[null,"11期終了時",{"$f":"'単位修得状況確認表（専門教育科目）'!AB$48","v":0},{"$f":"IF(SUM($C177:$C$182)=0,\"\",SUM(C$110:C120))","v":""}]
[null,"12期終了時",{"$f":"'単位修得状況確認表（専門教育科目）'!AD$48","v":0},{"$f":"IF(SUM($C178:$C$182)=0,\"\",SUM(C$110:C121))","v":""}]
[null,"13期終了時",{"$f":"'単位修得状況確認表（専門教育科目）'!AF$48","v":0},{"$f":"IF(SUM($C179:$C$182)=0,\"\",SUM(C$110:C122))","v":""}]
[null,"14期終了時",{"$f":"'単位修得状況確認表（専門教育科目）'!AH$48","v":0},{"$f":"IF(SUM($C180:$C$182)=0,\"\",SUM(C$110:C123))","v":""}]
[null,"15期終了時",{"$f":"'単位修得状況確認表（専門教育科目）'!AJ$48","v":0},{"$f":"IF(SUM($C181:$C$182)=0,\"\",SUM(C$110:C124))","v":""}]
[null,"16期終了時",{"$f":"'単位修得状況確認表（専門教育科目）'!AL$48","v":0},{"$f":"IF(SUM($C$182:$C182)=0,\"\",SUM(C$110:C125))","v":""}]
[]
[]
[]
[]
[]
[]
[]
[]
[]
[]
[]
[]
[null,"専門教育科目（プログラム科目：選択必修・選択）"]
[]
[null,null,"取得単位数","累積取得単位数"]
[null,"1期終了時",{"$f":"'単位修得状況確認表（専門教育科目）'!H$70","v":0},{"$f":"SUM(C$141:C141)","v":0}]
[null,"2期終了時",{"$f":"'単位修得状況確認表（専門教育科目）'!J$70","v":0},{"$f":"SUM(C$141:C142)","v":0}]
[null,"3期終了時",{"$f":"'単位修得状況確認表（専門教育科目）'!L$70","v":0},{"$f":"SUM(C$141:C143)","v":0}]
[null,"4期終了時",{"$f":"'単位修得状況確認表（専門教育科目）'!N$70","v":0},{"$f":"SUM(C$141:C144)","v":0}]
[null,"5期終了時",{"$f":"'単位修得状況確認表（専門教育科目）'!P$70","v":0},{"$f":"SUM(C$141:C145)","v":0}]
[null,"6期終了時",{"$f":"'単位修得状況確認表（専門教育科目）'!R$70","v":0},{"$f":"SUM(C$141:C146)","v":0}]
[null,"7期終了時",{"$f":"'単位修得状況確認表（専門教育科目）'!T$70","v":0},{"$f":"SUM(C$141:C147)","v":0}]
[null,"8期終了時",{"$f":"'単位修得状況確認表（専門教育科目）'!V$70","v":0},{"$f":"SUM(C$141:C148)","v":0}]
[null,"9期終了時",{"$f":"'単位修得状況確認表（専門教育科目）'!X$70","v":0},{"$f":"IF(SUM($C175:$C$182)=0,\"\",SUM(C$141:C149))","v":""}]
[null,"10期終了時",{"$f":"'単位修得状況確認表（専門教育科目）'!Z$70","v":0},{"$f":"IF(SUM($C176:$C$182)=0,\"\",SUM(C$141:C150))","v":""}]
[null,"11期終了時",{"$f":"'単位修得状況確認表（専門教育科目）'!AB$70","v":0},{"$f":"IF(SUM($C177:$C$182)=0,\"\",SUM(C$141:C151))","v":""}]
[null,"12期終了時",{"$f":"'単位修得状況確認表（専門教育科目）'!AD$70","v":0},{"$f":"IF(SUM($C178:$C$182)=0,\"\",SUM(C$141:C152))","v":""}]
[null,"13期終了時",{"$f":"'単位修得状況確認表（専門教育科目）'!AF$70","v":0},{"$f":"IF(SUM($C179:$C$182)=0,\"\",SUM(C$141:C153))","v":""}]
[null,"14期終了時",{"$f":"'単位修得状況確認表（専門教育科目）'!AH$70","v":0},{"$f":"IF(SUM($C180:$C$182)=0,\"\",SUM(C$141:C154))","v":""}]
[null,"15期終了時",{"$f":"'単位修得状況確認表（専門教育科目）'!AJ$70","v":0},{"$f":"IF(SUM($C181:$C$182)=0,\"\",SUM(C$141:C155))","v":""}]
[null,"16期終了時",{"$f":"'単位修得状況確認表（専門教育科目）'!AL$70","v":0},{"$f":"IF(SUM($C$182:$C182)=0,\"\",SUM(C$141:C156))","v":""}]
[]
[]
[]
[]
[]
[]
[]
[null,"累積単位数"]
[]
[null,null,"取得単位数","累積取得単位数"]
[null,"1期終了時",{"$f":"SUM(C6,E6,C45,E45,C84,C110,C141)","v":0},{"$f":"SUM(C$167:C167)","v":0}]
[null,"2期終了時",{"$f":"SUM(C7,E7,C46,E46,C85,C111,C142)","v":0},{"$f":"SUM(C$167:C168)","v":0}]
[null,"3期終了時",0,{"$f":"SUM(C$167:C169)","v":0}]
[null,"4期終了時",0,{"$f":"SUM(C$167:C170)","v":0}]
[null,"5期終了時",0,{"$f":"SUM(C$167:C171)","v":0}]
[null,"6期終了時",0,{"$f":"SUM(C$167:C172)","v":0}]
[null,"7期終了時",0,{"$f":"SUM(C$167:C173)","v":0}]
[null,"8期終了時",0,{"$f":"SUM(C$167:C174)","v":0}]
[null,"9期終了時",0,{"$f":"IF(SUM($C175:$C$182)=0,\"\",SUM(C$167:C175))","v":""}]
[null,"10期終了時",0,{"$f":"IF(SUM($C176:$C$182)=0,\"\",SUM(C$167:C176))","v":""}]
[null,"11期終了時",0,{"$f":"IF(SUM($C177:$C$182)=0,\"\",SUM(C$167:C177))","v":""}]
[null,"12期終了時",0,{"$f":"IF(SUM($C178:$C$182)=0,\"\",SUM(C$167:C178))","v":""}]
[null,"13期終了時",0,{"$f":"IF(SUM($C179:$C$182)=0,\"\",SUM(C$167:C179))","v":""}]
[null,"14期終了時",0,{"$f":"IF(SUM($C180:$C$182)=0,\"\",SUM(C$167:C180))","v":""}]
[null,"15期終了時",0,{"$f":"IF(SUM($C181:$C$182)=0,\"\",SUM(C$167:C181))","v":""}]
[null,"16期終了時",{"$f":"SUM(C21,E21,C60,E60,C99,C125,C156)","v":0},{"$f":"IF(SUM($C182:$C$182)=0,\"\",SUM(C$167:C182))","v":""}]
[]
[]
[]
[]
[]
[]
[]
[]
[]
[]
[]
[]
[]
[]
[]
[]
[null,"GPA"]
[]
[null,null,"累積GP","累積GPA","GPA累積単位数","累積P","累積F"]
[null,"1期終了時",{"$f":"'単位修得状況確認表（共通教育科目，一般学生）'!H$22+'単位修得状況確認表（専門教育科目）'!I$72","v":0},{"$f":"IF(E202=0,0,C202/E202)","v":0},{"$f":"D167-F202+G202","v":0},{"$f":"SUM('単位修得状況確認表（共通教育科目，一般学生）'!G$25,'単位修得状況確認表（専門教育科目）'!H76)","v":0},{"$f":"SUM('単位修得状況確認表（共通教育科目，一般学生）'!G$26,'単位修得状況確認表（専門教育科目）'!H$77)-SUM('単位修得状況確認表（共通教育科目，一般学生）'!G$27,'単位修得状況確認表（専門教育科目）'!H$78)","v":0}]
[null,"2期終了時",{"$f":"C202+'単位修得状況確認表（共通教育科目，一般学生）'!J$22+'単位修得状況確認表（専門教育科目）'!K$72","v":0},{"$f":"IF(E203=0,0,C203/E203)","v":0},0,{"$f":"SUM(F202,'単位修得状況確認表（共通教育科目，一般学生）'!I$25,'単位修得状況確認表（専門教育科目）'!J76)","v":0},{"$f":"SUM(G202,'単位修得状況確認表（共通教育科目，一般学生）'!I$26,'単位修得状況確認表（専門教育科目）'!J$77)-SUM('単位修得状況確認表（共通教育科目，一般学生）'!I$27,'単位修得状況確認表（専門教育科目）'!J$78)","v":0}]
[null,"3期終了時",{"$f":"C203+'単位修得状況確認表（共通教育科目，一般学生）'!L$22+'単位修得状況確認表（専門教育科目）'!M$72","v":0},0,{"$f":"D169-F204+G204","v":0},{"$f":"SUM(F203,'単位修得状況確認表（共通教育科目，一般学生）'!K$25,'単位修得状況確認表（専門教育科目）'!L76)","v":0},{"$f":"SUM(G203,'単位修得状況確認表（共通教育科目，一般学生）'!K$26,'単位修得状況確認表（専門教育科目）'!L$77)-SUM('単位修得状況確認表（共通教育科目，一般学生）'!K$27,'単位修得状況確認表（専門教育科目）'!L$78)","v":0}]
[null,"4期終了時",{"$f":"C204+'単位修得状況確認表（共通教育科目，一般学生）'!N$22+'単位修得状況確認表（専門教育科目）'!O$72","v":0},0,0,{"$f":"SUM(F204,'単位修得状況確認表（共通教育科目，一般学生）'!M$25,'単位修得状況確認表（専門教育科目）'!N76)","v":0},{"$f":"SUM(G204,'単位修得状況確認表（共通教育科目，一般学生）'!M$26,'単位修得状況確認表（専門教育科目）'!N$77)-SUM('単位修得状況確認表（共通教育科目，一般学生）'!M$27,'単位修得状況確認表（専門教育科目）'!N$78)","v":0}]
[null,"5期終了時",{"$f":"C205+'単位修得状況確認表（共通教育科目，一般学生）'!P$22+'単位修得状況確認表（専門教育科目）'!Q$72","v":0},0,0,{"$f":"SUM(F205,'単位修得状況確認表（共通教育科目，一般学生）'!O$25,'単位修得状況確認表（専門教育科目）'!P76)","v":0},{"$f":"SUM(G205,'単位修得状況確認表（共通教育科目，一般学生）'!O$26,'単位修得状況確認表（専門教育科目）'!P$77)-SUM('単位修得状況確認表（共通教育科目，一般学生）'!O$27,'単位修得状況確認表（専門教育科目）'!P$78)","v":0}]
[null,"6期終了時",{"$f":"C206+'単位修得状況確認表（共通教育科目，一般学生）'!R$22+'単位修得状況確認表（専門教育科目）'!S$72","v":0},0,0,{"$f":"SUM(F206,'単位修得状況確認表（共通教育科目，一般学生）'!Q$25,'単位修得状況確認表（専門教育科目）'!R76)","v":0},{"$f":"SUM(G206,'単位修得状況確認表（共通教育科目，一般学生）'!Q$26,'単位修得状況確認表（専門教育科目）'!R$77)-SUM('単位修得状況確認表（共通教育科目，一般学生）'!Q$27,'単位修得状況確認表（専門教育科目）'!R$78)","v":0}]
[null,"7期終了時",{"$f":"C207+'単位修得状況確認表（共通教育科目，一般学生）'!T$22+'単位修得状況確認表（専門教育科目）'!U$72","v":0},0,0,{"$f":"SUM(F207,'単位修得状況確認表（共通教育科目，一般学生）'!S$25,'単位修得状況確認表（専門教育科目）'!T76)","v":0},{"$f":"SUM(G207,'単位修得状況確認表（共通教育科目，一般学生）'!S$26,'単位修得状況確認表（専門教育科目）'!T$77)-SUM('単位修得状況確認表（共通教育科目，一般学生）'!S$27,'単位修得状況確認表（専門教育科目）'!T$78)","v":0}]
[null,"8期終了時",{"$f":"C208+'単位修得状況確認表（共通教育科目，一般学生）'!V$22+'単位修得状況確認表（専門教育科目）'!W$72","v":0},0,0,{"$f":"SUM(F208,'単位修得状況確認表（共通教育科目，一般学生）'!U$25,'単位修得状況確認表（専門教育科目）'!V76)","v":0},{"$f":"SUM(G208,'単位修得状況確認表（共通教育科目，一般学生）'!U$26,'単位修得状況確認表（専門教育科目）'!V$77)-SUM('単位修得状況確認表（共通教育科目，一般学生）'!U$27,'単位修得状況確認表（専門教育科目）'!V$78)","v":0}]
[null,"9期終了時",{"$f":"C209+'単位修得状況確認表（共通教育科目，一般学生）'!X$22+'単位修得状況確認表（専門教育科目）'!Y$72","v":0},{"$f":"IF(E210=\"\",\"\",IF(E210=0,0,C210/E210))","v":""},{"$f":"IF(D175=\"\",\"\",D175-F210+G210)","v":""},{"$f":"SUM(F209,'単位修得状況確認表（共通教育科目，一般学生）'!W$25,'単位修得状況確認表（専門教育科目）'!X76)","v":0},{"$f":"SUM(G209,'単位修得状況確認表（共通教育科目，一般学生）'!W$26,'単位修得状況確認表（専門教育科目）'!X$77)-SUM('単位修得状況確認表（共通教育科目，一般学生）'!W$27,'単位修得状況確認表（専門教育科目）'!X$78)","v":0}]
[null,"10期終了時",{"$f":"C210+'単位修得状況確認表（共通教育科目，一般学生）'!Z$22+'単位修得状況確認表（専門教育科目）'!AA$72","v":0},{"$f":"IF(E211=\"\",\"\",IF(E211=0,0,C211/E211))","v":""},{"$f":"IF(D176=\"\",\"\",D176-F211+G211)","v":""},{"$f":"SUM(F210,'単位修得状況確認表（共通教育科目，一般学生）'!Y$25,'単位修得状況確認表（専門教育科目）'!Z76)","v":0},{"$f":"SUM(G210,'単位修得状況確認表（共通教育科目，一般学生）'!Y$26,'単位修得状況確認表（専門教育科目）'!Z$77)-SUM('単位修得状況確認表（共通教育科目，一般学生）'!Y$27,'単位修得状況確認表（専門教育科目）'!Z$78)","v":0}]
[null,"11期終了時",{"$f":"C211+'単位修得状況確認表（共通教育科目，一般学生）'!AB$22+'単位修得状況確認表（専門教育科目）'!AC$72","v":0},"","",{"$f":"SUM(F211,'単位修得状況確認表（共通教育科目，一般学生）'!AA$25,'単位修得状況確認表（専門教育科目）'!AB76)","v":0},{"$f":"SUM(G211,'単位修得状況確認表（共通教育科目，一般学生）'!AA$26,'単位修得状況確認表（専門教育科目）'!AB$77)-SUM('単位修得状況確認表（共通教育科目，一般学生）'!AA$27,'単位修得状況確認表（専門教育科目）'!AB$78)","v":0}]
[null,"12期終了時",{"$f":"C212+'単位修得状況確認表（共通教育科目，一般学生）'!AD$22+'単位修得状況確認表（専門教育科目）'!AE$72","v":0},"","",{"$f":"SUM(F212,'単位修得状況確認表（共通教育科目，一般学生）'!AC$25,'単位修得状況確認表（専門教育科目）'!AD76)","v":0},{"$f":"SUM(G212,'単位修得状況確認表（共通教育科目，一般学生）'!AC$26,'単位修得状況確認表（専門教育科目）'!AD$77)-SUM('単位修得状況確認表（共通教育科目，一般学生）'!AC$27,'単位修得状況確認表（専門教育科目）'!AD$78)","v":0}]
[null,"13期終了時",{"$f":"C213+'単位修得状況確認表（共通教育科目，一般学生）'!AF$22+'単位修得状況確認表（専門教育科目）'!AG$72","v":0},"","",{"$f":"SUM(F213,'単位修得状況確認表（共通教育科目，一般学生）'!AE$25,'単位修得状況確認表（専門教育科目）'!AF76)","v":0},{"$f":"SUM(G213,'単位修得状況確認表（共通教育科目，一般学生）'!AE$26,'単位修得状況確認表（専門教育科目）'!AF$77)-SUM('単位修得状況確認表（共通教育科目，一般学生）'!AE$27,'単位修得状況確認表（専門教育科目）'!AF$78)","v":0}]
[null,"14期終了時",{"$f":"C214+'単位修得状況確認表（共通教育科目，一般学生）'!AH$22+'単位修得状況確認表（専門教育科目）'!AI$72","v":0},"","",{"$f":"SUM(F214,'単位修得状況確認表（共通教育科目，一般学生）'!AG$25,'単位修得状況確認表（専門教育科目）'!AH76)","v":0},{"$f":"SUM(G214,'単位修得状況確認表（共通教育科目，一般学生）'!AG$26,'単位修得状況確認表（専門教育科目）'!AH$77)-SUM('単位修得状況確認表（共通教育科目，一般学生）'!AG$27,'単位修得状況確認表（専門教育科目）'!AH$78)","v":0}]
[null,"15期終了時",{"$f":"C215+'単位修得状況確認表（共通教育科目，一般学生）'!AJ$22+'単位修得状況確認表（専門教育科目）'!AK$72","v":0},"","",{"$f":"SUM(F215,'単位修得状況確認表（共通教育科目，一般学生）'!AI$25,'単位修得状況確認表（専門教育科目）'!AJ76)","v":0},{"$f":"SUM(G215,'単位修得状況確認表（共通教育科目，一般学生）'!AI$26,'単位修得状況確認表（専門教育科目）'!AJ$77)-SUM('単位修得状況確認表（共通教育科目，一般学生）'!AI$27,'単位修得状況確認表（専門教育科目）'!AJ$78)","v":0}]
[null,"16期終了時",{"$f":"C216+'単位修得状況確認表（共通教育科目，一般学生）'!AL$22+'単位修得状況確認表（専門教育科目）'!AM$72","v":0},"",{"$f":"IF(D182=\"\",\"\",D182-F217+G217)","v":""},{"$f":"SUM(F216,'単位修得状況確認表（共通教育科目，一般学生）'!AK$25,'単位修得状況確認表（専門教育科目）'!AL76)","v":0},{"$f":"SUM(G216,'単位修得状況確認表（共通教育科目，一般学生）'!AK$26,'単位修得状況確認表（専門教育科目）'!AL$77)-SUM('単位修得状況確認表（共通教育科目，一般学生）'!AK$27,'単位修得状況確認表（専門教育科目）'!AL$78)","v":0}]